Cogmind - Beta 11.1 @@@ ROGUE MODE // 2022.11.06 @ 13:31:50 Player: darki Result: Destroyed by DAS Turret with DAS Cannon Performance ------------- Evolutions (1) 500 Regions Visited (5) 1000 Robots Destroyed (16) 80 Value Destroyed (291) 291 Prototype IDs (24) 480 Alien Tech Used (0) 0 Bonus (246) 246 TOTAL SCORE: 2597 Bonus ------- Aligned with FarCom 300 Friendly Fire -54 Cogmind --------- Core Integrity 0/400 Matter 187/300 Energy 26/100 System Corruption 3% Temperature Cool (0) Movement Flying (37) Location -9/Exiles Parts ------- > --- POWER (1) -------- (None) > --- PROPULSION (2) --- Flight Unit Flight Unit > --- UTILITY (4) ------ Signal Interpreter Improved Trap Extractor (0/6) > --- WEAPON (2) ------- (None) > --- INVENTORY (5) ---- Medium Matter Pod (67) YOLO Cannon Peak State ------------ > --- POWER ------------ Light Nuclear Core > --- PROPULSION ------- Light Treads Light Treads > --- UTILITY ---------- Improved Sensor Array Signal Interpreter System Shield Improved Trap Extractor > --- WEAPON ----------- YOLO Cannon > --- INVENTORY -------- Medium Matter Pod Rocket Launcher Deploy-a-Sentry Deploy-a-Sentry Deploy-a-Sentry [Rating: 38] Favorites ----------- Power Light Nuclear Core Engine Ion Engine Power Core Light Nuclear Core Propulsion Light Treads Treads Light Treads Leg Aluminum Leg Flight Unit Flight Unit Utility Signal Interpreter Device Improved Sensor Array Storage Small Storage Unit Processor Signal Interpreter Hackware System Shield Weapon Assault Rifle Energy Gun Medium Laser Energy Cannon YOLO Cannon Ballistic Gun Assault Rifle Launcher Rocket Launcher Build | -11 -10 -10 -9 -9 -9 ------- Run | Scr Mat Min Mat Min Exi Slots Evolved 2 | . . . 2 . . Power . | . . . . . . Propulsion . | . . . . . . Utility 2 | . . . 2 . . Weapon . | . . . . . . Parts Attached 17 | . 5 2 4 2 4 Power 2 | . 1 1 . . . Engine 1 | . 1 . . . . Core 1 | . . 1 . . . Reactor . | . . . . . . Propulsion 4 | . 2 . . . 2 Treads 2 | . 2 . . . . Leg . | . . . . . . Wheel . | . . . . . . Hover . | . . . . . . Flight 2 | . . . . . 2 Utility 4 | . 1 1 2 . . Device 2 | . . 1 1 . . Storage . | . . . . . . Processor 1 | . 1 . . . . Hackware 1 | . . . 1 . . Protection . | . . . . . . Artifact . | . . . . . . Weapon 7 | . 1 . 2 2 2 Energy Gun . | . . . . . . Energy Cannon 1 | . . . . . 1 Ballistic Gun 4 | . 1 . 2 1 . Ballistic Cannon . | . . . . . . Launcher 2 | . . . . 1 1 Special Weapon . | . . . . . . Impact Weapon . | . . . . . . Slashing Weapon . | . . . . . . Piercing Weapon . | . . . . . . Special Melee Weapon . | . . . . . . Unidentified Prototypes 1 | . . . 1 . . Parts Lost 8 | . 2 . . . 6 Power 2 | . 1 . . . 1 Propulsion 2 | . . . . . 2 Utility 2 | . . . . . 2 Weapon 2 | . 1 . . . 1 Highest Loss Streak 6 | . 2 . . . 6 To Critical Strikes 2 | . . . . . 2 Average Slot Usage (%) 92 | . 87 100 99 100 88 Engine 1 | . 11 6 . . . Core 9 | . . 7 11 11 10 Treads 20 | . 12 28 22 22 21 Leg 2 | . 15 . . . . Device 18 | . . 10 22 22 21 Storage 2 | . 14 3 . . . Processor 10 | . 4 14 11 11 11 Hackware 8 | . . . 11 11 10 Energy Gun 2 | . 14 14 2 . . Energy Cannon 4 | . . . . . 8 Ballistic Gun 10 | . 14 14 19 21 5 Naked Turns . | . . . . . . Heaviest Build 27 | 12 14 14 14 15 27 Greatest Support 40 | 20 40 40 40 40 40 Greatest Overweight (x) . | . . . . . . Average Overweight (x) . | . . . . . . Largest Inventory Capacity 8 | . 8 8 5 5 5 Average Capacity 5 | . 8 5 5 5 5 Most Carried 7 | . 7 5 4 4 5 Average Carried 4 | . 5 4 3 4 3 Final Capacity 8 | 8 8 5 5 5 5 Final Carried 6 | 6 5 5 4 4 3 Class Distribution -------------------- 100% | Mutant Dominant Class ---------------- Mutant | -10/Materials Mutant | -10/Mines Mutant | -9/Materials Mutant | -9/Mines Mutant | -9/Exiles Resources | -11 -10 -10 -9 -9 -9 ----------- Run | Scr Mat Min Mat Min Exi Matter Collected 536 | 200 89 . 207 40 . Remotely . | . . . . . . Salvage Created 506 | . 248 . 171 87 . Parts 29 | . 15 . 9 5 . Haulers Intercepted . | . . . . . . Recyclers Shooed 2 | . 2 . . . . Parts Field Recycled . | . . . . . . Retrieved Matter . | . . . . . . Parts Self-Destructed . | . . . . . . Prevented . | . . . . . . Kills | -11 -10 -10 -9 -9 -9 ------- Run | Scr Mat Min Mat Min Exi Combat Hostiles Destroyed 21 | . 7 . 4 10 . Guns 15 | . 7 . 4 4 . AOE 6 | . . . . 6 . Classes Destroyed 6 | . 4 . 1 1 . Worker 1 | . 1 . . . . Recycler 1 | . 1 . . . . Swarmer 9 | . 5 . 1 3 . Grunt 4 | . 2 . 2 . . Sentry 1 | . . . 1 . . Assembled 7 | . . . . 7 . Best Kill Streak 7 | . 6 . 2 7 . Combat Bots Only 7 | . 6 . 2 7 . Max Kills in Single Turn 4 | . 1 . 1 4 . Gunslinging . | . . . . . . Exploded 4 | . . . . 4 . Melee . | . . . . . . Uniques/NPCs Destroyed . | . . . . . . Combat | -11 -10 -10 -9 -9 -9 -------- Run | Scr Mat Min Mat Min Exi Damage Taken 1566 | . 434 . 192 190 750 Core 481 | . 42 . 28 42 369 Absorbed by Shields . | . . . . . . Core Remaining (%) 91 | 100 . 83 . . . Volleys Fired 46 | . 18 . 12 11 5 Largest 2 | . 2 . 2 2 1 Hottest 100 | . 70 . 45 45 100 Shots Fired 83 | . 36 . 24 18 5 Gun 74 | . 36 . 24 14 . Cannon 4 | . . . . . 4 Launcher 5 | . . . . 4 1 Special . | . . . . . . Kinetic 56 | . 18 . 24 14 . Thermal 22 | . 18 . . . 4 Explosive 5 | . . . . 4 1 Electromagnetic . | . . . . . . Robot Hit Streak 6 | . 6 . 6 4 5 Robot Miss Streak 3 | . 3 . 2 3 2 Penetration Max . | . . . . . . Secondary Targets 3 | . . . 2 1 . Max Gunslinging Chain 1 | . . . 1 1 . Shots Hit Robots 45 | . 18 . 14 11 2 Core Hits 33 | . 10 . 6 15 2 Critical Kills . | . . . . . . Critical Parts Destroyed . | . . . . . . Critical Strikes 1 | . 1 . . . . Burn 1 | . 1 . . . . Melee Attacks . | . . . . . . Impact . | . . . . . . Slashing . | . . . . . . Piercing . | . . . . . . Sneak Attacks . | . . . . . . Combat Hostiles . | . . . . . . Follow-up Attacks . | . . . . . . Damage Inflicted 1311 | . 240 . 209 558 304 Guns 609 | . 240 . 209 160 . Cannons 109 | . . . . . 109 Explosions 593 | . . . . 398 195 Melee . | . . . . . . Ramming . | . . . . . . Kinetic 509 | . 140 . 209 160 . Thermal 403 | . 100 . . . 303 Explosive 399 | . . . . 398 1 Electromagnetic . | . . . . . . Impact . | . . . . . . Slashing . | . . . . . . Piercing . | . . . . . . Highest Corruption 3 | . . . . . 3 Average Corruption 3 | . . . . . 3 Corruption Purged . | . . . . . . Corruption Blocked . | . . . . . . Effects 1 | . . . . . 1 Matter Fused 1 | . . . . . 1 Overload Shots . | . . . . . . Overflow Damage 4 | . . . . 4 . Projectiles . | . . . . . . Explosions 4 | . . . . 4 . Melee . | . . . . . . Knockbacks . | . . . . . . Impact . | . . . . . . Kinetic . | . . . . . . Secondary . | . . . . . . Self-Inflicted Damage . | . . . . . . Shots . | . . . . . . Rammed . | . . . . . . Targets Rammed . | . . . . . . Kicked . | . . . . . . Crushed . | . . . . . . Highest Temperature 63 | . 63 . 4 4 48 Average Temperature 16 | . 27 . 2 2 20 Received Heat Transfer 310 | . 72 . 18 . 220 Siege Activations . | . . . . . . Robots Corrupted . | . . . . . . Combat Hostiles . | . . . . . . Parts Fried . | . . . . . . Impact Corruptions . | . . . . . . Robots Melted . | . . . . . . Combat Hostiles . | . . . . . . Parts Melted . | . . . . . . Heat Transferred 490 | . 370 . . . 120 Parts Sabotaged . | . . . . . . Parts Stolen . | . . . . . . Parts Stripped . | . . . . . . Power Chain Reactions . | . . . . . . Missiles Intercepted . | . . . . . . Alert | -11 -10 -10 -9 -9 -9 ------- Run | Scr Mat Min Mat Min Exi Peak Influence 261 | . 261 101 169 243 . Initial 101 | . . 101 39 65 . Average 148 | . 163 101 100 213 . Maximum Alert Level 1 | . 1 . . 1 . Low Security (%) 68 | . 54 100 100 30 . Level 1 31 | . 45 . . 69 . Level 2 . | . . . . . . Level 3 . | . . . . . . Level 4 . | . . . . . . Level 5 . | . . . . . . High Security . | . . . . . . Max Security . | . . . . . . Squads Dispatched 1 | . 1 . . . . Investigation . | . . . . . . Extermination . | . . . . . . Reinforcement 1 | . 1 . . . . Assault . | . . . . . . Garrison . | . . . . . . Intercept . | . . . . . . Searches Triggered . | . . . . . . Construction Impeded . | . . . . . . Haulers Reinforced . | . . . . . . Active Scanning Responses . | . . . . . . Cargo Convoy Interrupts . | . . . . . . Stealth | -11 -10 -10 -9 -9 -9 --------- Run | Scr Mat Min Mat Min Exi Distress Signals 3 | . 3 . . . . Communications Jammed . | . . . . . . Distress Signals . | . . . . . . Times Spotted 46 | . 16 . 12 10 8 Peak Tracking Total 9 | . 9 . 5 5 9 Tactical Retreats 2 | . 2 . . . . Traps | -11 -10 -10 -9 -9 -9 ------- Run | Scr Mat Min Mat Min Exi Traps Triggered . | . . . . . . Indirectly . | . . . . . . Trap Hack Attempts . | . . . . . . Triggered . | . . . . . . Disarmed . | . . . . . . Reprogrammed . | . . . . . . Reused . | . . . . . . Traps Extracted . | . . . . . . Installed . | . . . . . . Triggered . | . . . . . . Machines | -11 -10 -10 -9 -9 -9 ---------- Run | Scr Mat Min Mat Min Exi Machines Disabled 2 | . . . . . 2 Max in Single Turn 2 | . . . . . 2 Machines Sabotaged . | . . . . . . Garrisons Compromised . | . . . . . . Overloaded Fab Kills . | . . . . . . Hacking | -11 -10 -10 -9 -9 -9 --------- Run | Scr Mat Min Mat Min Exi Machines Accessed 3 | . 1 1 . . 1 Terminals 1 | . 1 . . . . Fabricators . | . . . . . . Repair Stations . | . . . . . . Recycling Units . | . . . . . . Scanalyzers . | . . . . . . Garrison Access . | . . . . . . Total Hacks 5 | . 3 1 . . 1 Successful 3 | . 1 1 . . 1 Failed 2 | . 2 . . . . Catastrophic . | . . . . . . Database Lockouts . | . . . . . . Manual 4 | . 3 . . . 1 Terminals 3 | . 3 . . . . Fabricators . | . . . . . . Repair Stations . | . . . . . . Recycling Units . | . . . . . . Scanalyzers . | . . . . . . Garrison Access . | . . . . . . Terminal Hacks 3 | . 1 1 . . 1 Open Door 1 | . . 1 . . . Branch Access Points 1 | . 1 . . . . EX-Prototype ID Bank 1 | . . . . . 1 Fabricator Hacks . | . . . . . . Repair Station Hacks . | . . . . . . Recycling Unit Hacks . | . . . . . . Scanalyzer . | . . . . . . Garrison Access Hacks . | . . . . . . Unauthorized Hacks . | . . . . . . Terminals . | . . . . . . Fabricators . | . . . . . . Repair Stations . | . . . . . . Recycling Units . | . . . . . . Scanalyzers . | . . . . . . Garrison Access . | . . . . . . Data Cores Recovered . | . . . . . . Used . | . . . . . . Hacking Detections 1 | . 1 . . . . Full Trace Events . | . . . . . . Feedback Events . | . . . . . . Feedback Blocked . | . . . . . . Robot Schematics Acquired . | . . . . . . Robots Built . | . . . . . . Authchips . | . . . . . . Time . | . . . . . . Total Robot Build Rating . | . . . . . . Part Schematics Acquired . | . . . . . . Parts Built . | . . . . . . Authchips . | . . . . . . Time . | . . . . . . Total Part Build Rating . | . . . . . . Parts Repaired . | . . . . . . Time . | . . . . . . Parts Recycled . | . . . . . . Recycled Matter . | . . . . . . Retrieved Matter . | . . . . . . Retrieved Components . | . . . . . . Parts Scanalyzed . | . . . . . . Part Schematics Acquired . | . . . . . . Parts Damaged . | . . . . . . Bothacking | -11 -10 -10 -9 -9 -9 ------------ Run | Scr Mat Min Mat Min Exi Used RIF Installer . | . . . . . . Robots Hacked . | . . . . . . Non-combat . | . . . . . . Combat . | . . . . . . Robot Hacks Applied . | . . . . . . Relay Couplers Released . | . . . . . . Fabnet Peak Effective % . | . . . . . . Robots Rewired . | . . . . . . Allies Hacked . | . . . . . . Hacks Repelled . | . . . . . . Allies | -11 -10 -10 -9 -9 -9 -------- Run | Scr Mat Min Mat Min Exi Total Allies . | . . . . . . Largest Group . | . . . . . . Highest-Rated Group . | . . . . . . Highest-Rated Ally . | . . . . . . Total Orders . | . . . . . . Ally Attacks 8 | . . . . . 8 Total Damage 379 | . . . . . 379 Kills . | . . . . . . Allies Corrupted . | . . . . . . Allies Melted . | . . . . . . Turrets Deployed 3 | . . . . . 3 Intel | -11 -10 -10 -9 -9 -9 ------- Run | Scr Mat Min Mat Min Exi Robot Analysis Total . | . . . . . . Derelict Logs Recovered 1 | . . . . 1 . Drone Launches . | . . . . . . Drone Recoveries . | . . . . . . Exploration | -11 -10 -10 -9 -9 -9 ------------- Run | Scr Mat Min Mat Min Exi Turns Passed 1535 | . 203 89 225 185 833 Spaces Moved 871 | 1 99 42 110 87 532 Core 11 | . . . . . 11 Treads 766 | . 45 42 110 87 482 Legs 55 | 1 54 . . . . Wheels . | . . . . . . Hover . | . . . . . . Flight 39 | . . . . . 39 Fastest Speed 37 | 120 120 160 160 160 37 Average Speed 150 | 120 138 160 160 160 148 Slowest Speed 160 | 120 160 160 160 160 160 Overloaded Moves . | . . . . . . Propulsion Burnouts . | . . . . . . Robots Hopped . | . . . . . . Cave-ins Triggered . | . . . . . . Exploration Rate (%) 18 | 1 24 10 19 13 45 Regions Visited 5 Branch Regions 3 Pre-discovered Areas . | . . . . . . Known Exits Taken 4 | . 1 1 1 1 . Unknown Exits Taken 1 | 1 . . . . . Scrap Searched . | . . . . . . Spaces Dug . | . . . . . . Terrain Destroyed 96 | . . . . 35 61 Melee . | . . . . . . Projectile 2 | . . . . . 2 AOE 94 | . . . . 35 59 Terrain Rammed . | . . . . . . Walls Destroyed . | . . . . . . Machines Disabled . | . . . . . . Actions | -11 -10 -10 -9 -9 -9 --------- Run | Scr Mat Min Mat Min Exi Total 1016 | . 129 66 140 117 564 Wait 50 | . 3 11 12 18 6 Move 866 | . 98 41 109 86 532 Hop . | . . . . . . Pick Up 15 | . 3 5 1 . 6 Fast Attach 8 | . 1 2 2 . 3 Attach 5 | . 2 . 2 . 1 Detach 1 | . . . . . 1 Swap 4 | . 2 . . 2 . Drop 21 | . 2 7 2 . 10 Fire 46 | . 18 . 12 11 5 Melee . | . . . . . . Ram . | . . . . . . Kick . | . . . . . . Crush . | . . . . . . Escape Stasis . | . . . . . . Rewire . | . . . . . . Trap . | . . . . . . Miscellaneous . | . . . . . . Route ------- -11/Scrapyard -10/Materials (discovered 2 exits: *Mat / *Min) -10/Mines -9/Materials (discovered 2 exits: *Min / *Sto) -9/Mines -9/Exiles History --------- Turn | Location | Event 1 | -11/Scrapyard | Discovered new exit (range 0) 1 | -11/Scrapyard | Entered Materials 10 | -10/Materials | Identified exit to Mines 74 | -10/Materials | Discovered new exit (range 12) 204 | -10/Materials | Entered Mines 205 | -10/Mines | Discovered new exit (range 13) 211 | -10/Mines | Met a Derelict who couldn't figure out how to use a Trap Extractor 266 | -10/Mines | Met a Derelict bent on vengeance 281 | -10/Mines | Received a Rocket Launcher from a helpful Derelict 281 | -10/Mines | Identified exit to Materials 293 | -10/Mines | Entered Materials 293 | -9/Materials | Evolved 2 slots: Utility x2 315 | -9/Materials | Build established: Mutant 405 | -9/Materials | Discovered new exit (range 7) 418 | -9/Materials | Identified exit to Storage 507 | -9/Materials | Discovered new exit (range 7) 516 | -9/Materials | Identified exit to Mines 518 | -9/Materials | Entered Mines 519 | -9/Mines | Assembled infested the area 603 | -9/Mines | Destroyed 7 combat bots 617 | -9/Mines | Learned 2 Materials zone layouts 695 | -9/Mines | Deemed a non-threat by the Exiles lab entrance 697 | -9/Mines | Discovered new exit (range 5) 702 | -9/Mines | Identified exit to Exiles 703 | -9/Mines | Entered Exiles 751 | -9/Exiles | Met 8R-AWN 775 | -9/Exiles | Met EX-HEX 820 | -9/Exiles | Met EX-BIN 847 | -9/Exiles | Aligned with FarCom system 848 | -9/Exiles | Given EX-Vault access code 885 | -9/Exiles | Opened EX-Vault 896 | -9/Exiles | Found YOLO Cannon 933 | -9/Exiles | Warned to stay clear of 0b10 Research branches 1207 | -9/Exiles | Found Deploy-a-Sentry 1210 | -9/Exiles | Found Deploy-a-Sentry 1213 | -9/Exiles | Found Deploy-a-Sentry 1338 | -9/Exiles | DAS Turret deployed 1339 | -9/Exiles | DAS Turret deployed 1341 | -9/Exiles | DAS Turret deployed 1489 | -9/Exiles | Attacked by the Exiles 1511 | -9/Exiles | Core integrity fell below 50% 1516 | -9/Exiles | Core integrity fell below 20% 1536 | -9/Exiles | Destroyed by DAS Turret with DAS Cannon Last Messages --------------- 01512_ Penetrated by HV Slug. 01512_ Rocket Launcher destroyed. 01512_ HV Slug penetrates Earth. 01512_ System Shield destroyed. 01514_ Penetrated by HV Slug. 01514_ HV Slug penetrates as-95877. 01514_ HV Slug penetrates Wall. 01516_ HV Slug penetrates Machine. 01516_ Machine disabled. 01516_ HV Slug penetrates Machine. 01518_ Acquired Flight Unit. 01519_ Penetrated by HV Slug. 01519_ HV Slug penetrates Machine. 01519_ Penetrated by HV Slug. 01519_ HV Slug penetrates Wall. 01520_ The unstable cave ceiling collapses. 01520_ Acquired Flight Unit. 01522_ Penetrated by HV Slug. 01522_ HV Slug penetrates Machine. 01522_ Machine disabled. Map ----- +----------------------------------------------------+ | ?????????????????????????????# #?#"""""""#???? | | ?????????????????????????????# #?#"""""""#???? | | ????????????????????????????## ###"" """"#???? | | ????????????????????????????#" """"#???? | | ????????????????????????????#" """#???? | | ????????????????????????????#" """#???? | | ????????????????????????????#" """#???? | | ????????????????????????????#" """#???? | | ????????????????????????????#" """#???? | | ????????????????????????????## """"???? | | ?????????????????????????????# """#???? | | ?????????????????????????????#" "X" """????? | | ?????????????????????????????#" """ #???? | | ?????????????????????????????#" """""""""#???? | | ????????????????????????????##" ###########???? | | ???????????????????????????##"" #?????????????? | | ???????????????#??##??######"" #?????????????? | | ?????????????#X# ?#"###""""""" ##????????????? | | ???????????? """""" " "" ##???######### | | ???????????? "" """ " #####"""""""" | | ???????????? " " " """ "" | | ??????????? "" " | | ??????????? " | | ?????????? % | | ?????????? | | ?????????? @ | | ??????????" """""" | | ?????????? ######""" | | ??????????? ""##????#####""" | | ??????????? """#??????????##""" | | ???????????? """#????????????#"""" | | ???????????? ""?????????????#"" | | ???????????? ????????????????"""" | | ????????????? ??????????????????" | | ????????????? ?????????????????" | | ?????????????? ?????????????????? | | ????????????????????????????????? | | ????????????????????????????????? " | | ????????????????????????????????? "" """ | | ?????????????????????????????????#?""" " " ""#" | | ????????????????????????????????????###""" """##"" | | ??????????????????????????????????????###""""??### | | ????????????????????????????????????????###??????? | | ?????????????????????????????????????????????????? | | ?????????????????????????????????????????????????? | | ?????????????????????????????????????????????????? | | ?????????????????????????????????????????????????? | | ?????????????????????????????????????????????????? | | ?????????????????????????????????????????????????? | | ?????????????????????????????????????????????????? | +----------------------------------------------------+ Best States ------------- Heat Dissipation 28 Energy Generation 14 Energy Capacity 250 Matter Stores 300 Matter Capacity 300 Sight Range 16 Robot Scan Range 15 Terrain Scan Density 10 Evasion (%) 62 Recoil Reduction 2 Defensive Hacking 10 Trap Extractor Capacity 6 Item Schematics ----------------- None Robot Schematics ------------------ None Fabricated ------------ Nothing Alien Tech Used ----------------- None Achievements -------------- None Challenges ------------ None Game ------ Seed ImpulseGatlingDeconstructor Manual? 0 Play Time 00:11:15 Cumulative 114.1 hours Start 2022.11.06 @ 13:20:03 End 2022.11.06 @ 13:31:50 Sessions 1 Manual Loads 0 Difficulty Rogue Special Mode None Game No. 124 Rogue 124 Adventurer 0 Explorer 0 Win Type - Total 0 Types 0/0/0/0/0/0/0/0/0 Lore% 51 Gallery% 66 Achievement% 51 Wizard Run 0 Options --------- ASCII 0 Keyboard 0 Movement Mouse Keybinds 0 Fullscreen 1 Font 18/SmallcapsGlow Map View 76x50 Tactical HUD 1 Map Filters NONE Filters NONE Steam 1 RUN: 3ad5f3a9-5eb3-4a01-96dd-3fbe1bbe5bf3